fUSD/lending_fUSD_20250108
["ID","MTS","AMOUNT","RATE_DAILY","PERIOD"]
[348099454,1736311849762,-500.0,0.00011095,2]
[348099455,1736311849771,-500.0,0.00011095,2]
[348099456,1736311849781,-500.0,0.00011095,2]
[348099457,1736311849792,-573.8,0.00011095,2]
[348099458,1736311849802,-500.0,0.00011095,2]
[348099459,1736311849812,-500.0,0.00011095,2]
[348099460,1736311849821,-500.0,0.00011095,2]
[348099461,1736311849831,-534.99,0.00011095,2]
[348099462,1736311849841,-513.34322669,0.00011095,2]
[348099463,1736311849851,-517.59121644,0.00011095,2]
[348099464,1736311849860,-500.0,0.00011095,2]
[348099465,1736311849870,-500.0,0.00011095,2]
[348099466,1736311849879,-500.0,0.00011095,2]
[348099467,1736311849888,-500.0,0.00011095,2]
[348099468,1736311849897,-500.0,0.00011095,2]
[348099469,1736311849907,-500.0,0.00011095,2]
[348099470,1736311849916,-1448.21,0.00011095,2]
[348099471,1736311849926,-500.0,0.00011095,2]
[348099472,1736311849935,-500.0,0.00011095,2]
[348099473,1736311849945,-500.0,0.00011095,2]
[348099474,1736311849955,-500.0,0.00011095,2]
[348099475,1736311849964,-909.52,0.00011095,2]
[348099476,1736311849974,-500.0,0.00011095,2]
[348099477,1736311849983,-500.0,0.00011095,2]
[348099478,1736311849993,-500.0,0.00011095,2]
[348099479,1736311850002,-500.0,0.00011095,2]
[348099480,1736311850011,-500.0,0.00011095,2]
[348099481,1736311850021,-500.0,0.00011095,2]
[348099482,1736311850031,-406.89314007,0.00011095,2]
[348099483,1736311850041,-500.0,0.00011095,2]
[348099484,1736311850050,-500.0,0.00011095,2]
[348099485,1736311850059,-500.0,0.00011095,2]
[348099486,1736311850069,-500.0,0.00011095,2]
[348099487,1736311850078,-500.0,0.00011095,2]
[348099488,1736311850088,-500.0,0.00011095,2]
[348099489,1736311850097,-500.0,0.00011095,2]
[348099490,1736311850106,-500.0,0.00011095,2]
[348099491,1736311850115,-500.0,0.00011095,2]
[348099492,1736311850124,-500.0,0.00011095,2]
[348099493,1736311850134,-500.0,0.00011095,2]
[348099494,1736311850143,-500.0,0.00011095,2]
[348099495,1736311850152,-500.0,0.00011095,2]
[348099496,1736311850162,-1533.36,0.00011095,2]
[348099497,1736311850171,-500.0,0.00011095,2]
[348099498,1736311850181,-500.0,0.00011095,2]
[348099499,1736311850190,-500.0,0.00011095,2]
[348099500,1736311850199,-500.0,0.00011095,2]
[348099501,1736311850209,-500.0,0.00011095,2]
[348099502,1736311850218,-500.0,0.00011095,2]
[348099503,1736311850228,-500.0,0.00011095,2]
[348099504,1736311850237,-500.0,0.00011095,2]
[348099505,1736311850246,-700.47,0.00011095,2]
[348099506,1736311850256,-500.0,0.00011095,2]
[348099507,1736311850266,-500.0,0.00011095,2]
[348099508,1736311850275,-581.90467232,0.00011095,2]
[348099509,1736311850285,-500.0,0.00011095,2]
[348099510,1736311850295,-500.0,0.00011095,2]
[348099511,1736311850304,-500.0,0.00011095,2]
[348099512,1736311850313,-905.44,0.00011095,2]
[348099513,1736311850323,-500.0,0.00011095,2]
[348099514,1736311850332,-500.0,0.00011095,2]
[348099515,1736311850342,-500.0,0.00011095,2]
[348099516,1736311850351,-500.0,0.00011095,2]
[348099517,1736311850361,-500.0,0.00011095,2]
[348099518,1736311850371,-500.0,0.00011095,2]
[348099519,1736311850381,-500.0,0.00011095,2]
[348099520,1736311850390,-500.0,0.00011095,2]
[348099521,1736311850400,-500.0,0.00011095,2]
[348099522,1736311850411,-500.0,0.00011095,2]
[348099523,1736311850420,-500.0,0.00011095,2]
[348099524,1736311850430,-869.86,0.00011095,2]
[348099525,1736311850439,-500.0,0.00011095,2]
[348099526,1736311850448,-782.99,0.00011095,2]
[348099527,1736311850460,-500.0,0.00011095,2]
[348099528,1736311850469,-500.0,0.00011095,2]
[348099529,1736311850479,-1539.23,0.00011095,2]
[348099530,1736311850488,-500.0,0.00011095,2]
[348099531,1736311850497,-500.0,0.00011095,2]
[348099532,1736311850506,-530.46,0.00011095,2]
[348099533,1736311850516,-642.51426566,0.00011095,2]
[348099534,1736311850525,-500.0,0.00011095,2]
[348099535,1736311850536,-500.0,0.00011095,2]
[348099536,1736311850545,-854.93,0.00011095,2]
[348099537,1736311850555,-500.0,0.00011095,2]
[348099538,1736311850564,-500.0,0.00011095,2]
[348099539,1736311850573,-647.3,0.00011095,2]
[348099540,1736311850583,-765.46,0.00011095,2]
[348099541,1736311850594,-500.0,0.00011095,2]
[348099542,1736311850604,-408.7586218,0.00011095,2]
[348099543,1736311850614,-500.0,0.00011095,2]
[348099544,1736311850623,-1061.19,0.00011095,2]
[348099545,1736311850632,-500.0,0.00011095,2]
[348099546,1736311850641,-508.4264153,0.00011095,2]
[348099547,1736311850651,-579.76,0.00011095,2]
[348099548,1736311850660,-512.52082297,0.00011095,2]
[348099549,1736311850669,-533.61,0.00011095,2]
[348099550,1736311850680,-500.0,0.00011095,2]
[348099551,1736311850691,-500.0,0.00011095,2]
[348099552,1736311850700,-512.53,0.00011095,2]
[348099553,1736311850709,-922.85,0.00011095,2]
[348099554,1736311850719,-473.861407,0.00011095,2]
[348099555,1736311850728,-500.0,0.00011095,2]
[348099556,1736311850738,-500.0,0.00011095,2]
[348099557,1736311850747,-500.0,0.00011095,2]
[348099558,1736311850757,-500.0,0.00011095,2]
[348099559,1736311850766,-500.0,0.00011095,2]
[348099560,1736311850775,-500.0,0.00011095,2]
[348099561,1736311850786,-500.0,0.00011095,2]
[348099562,1736311850798,-500.0,0.00011095,2]
[348099563,1736311850807,-2128.15,0.00011095,2]
[348099564,1736311850817,-500.0,0.00011095,2]
[348099565,1736311850826,-505.89,0.00011095,2]
[348099566,1736311850837,-1650.59,0.00011095,2]
[348099567,1736311850847,-450.9594,0.00011095,2]
[348099568,1736311850856,-885.37,0.00011095,2]
[348099569,1736311850865,-988.02,0.00011095,2]
[348099570,1736311850875,-500.0,0.00011095,2]
[348099571,1736311850885,-1729.79,0.00011095,2]
[348099572,1736311850894,-500.0,0.00011095,2]
[348099573,1736311850903,-956.52,0.00011095,2]
[348099574,1736311850912,-500.0,0.00011095,2]
[348099575,1736311850921,-500.0,0.00011095,2]
[348099576,1736311850930,-500.0,0.00011095,2]
[348099577,1736311850939,-500.0,0.00011095,2]
[348099578,1736311850948,-500.0,0.00011095,2]
[348099579,1736311850958,-500.0,0.00011095,2]
[348099580,1736311850967,-1547.36,0.00011095,2]
[348099581,1736311850976,-504.32,0.00011095,2]
[348099582,1736311850985,-500.0,0.00011095,2]
[348099583,1736311850995,-260.93,0.00011095,2]
[348099584,1736311851004,-639.6,0.00011095,2]
[348099585,1736311851014,-500.0,0.00011095,2]
[348099586,1736311851023,-2470.47,0.00011095,2]
[348099587,1736311851034,-500.0,0.00011095,2]
[348099588,1736311851043,-1520.25537966,0.00011099,2]
[348099589,1736311851052,-1520.25537958,0.00011099,2]
[348099590,1736311851061,-1520.25537958,0.00011099,2]
[348099591,1736311851070,-1520.25537958,0.00011099,2]
[348099592,1736311851079,-1520.25537958,0.00011099,2]
[348099593,1736311851088,-1520.25537958,0.00011099,2]
[348099594,1736311851098,-960.15767696,0.00011107,2]
[348099595,1736311851107,-1520.25537958,0.00011126,2]
[348099596,1736311851117,-150.0,0.00011133,2]
[348099597,1736311851126,-150.0,0.00011151,2]
[348099598,1736311851136,-150.0,0.00011151,2]
[348099599,1736311851145,-200.0,0.00011167,2]
[348099600,1736311851154,-3712.49279036,0.00011167,2]
[348099601,1736311851163,-3712.49279036,0.00011172,2]
[348099602,1736311851172,-960.15767696,0.00011176,2]
[348099603,1736311851181,-3712.49279036,0.00011183,2]
[348099604,1736311851191,-3712.49279036,0.00011187,2]
[348099605,1736311851201,-3712.49279036,0.00011189,2]
[348099606,1736311851211,-3712.49279036,0.00011192,2]
[348099607,1736311851221,-200.0,0.00011196,2]
[348099608,1736311851231,-150.0,0.00011224,2]
[348099609,1736311851242,-500.0,0.00011232,2]
[348099610,1736311851252,-960.15767696,0.00011245,2]
[348099611,1736311851262,-3180.24876096,0.0001126,2]
[348099612,1736311851271,-150.0,0.0001127,2]
[348099613,1736311851281,-960.15767696,0.00011314,2]
[348099614,1736311851290,-150.0,0.00011315,2]
[348099615,1736311851300,-1520.25537958,0.0001133,2]
[348099616,1736311851309,-808.44,0.00011342,2]
[348099617,1736311851318,-437.79,0.00011342,2]
[348099618,1736311851327,-437.79,0.00011342,2]
[348099619,1736311851336,-437.79,0.00011342,2]
[348099620,1736311851347,-621.24,0.00011342,2]
[348099621,1736311851357,-500.0,0.00011366,2]
[348099622,1736311851366,-500.0,0.00011366,2]
[348099623,1736311851377,-1305.41,0.00011366,2]
[348099624,1736311851387,-594.11,0.00011366,2]
[348099625,1736311851396,-942.87,0.00011366,2]
[348099626,1736311851406,-500.0,0.00011366,2]
[348099627,1736311851417,-500.0,0.00011366,2]
[348099628,1736311851427,-500.0,0.00011366,2]
[348099629,1736311851436,-500.0,0.00011366,2]
[348099630,1736311851447,-1037.93,0.00011366,2]
[348099631,1736311851456,-672.69,0.00011366,2]
[348099632,1736311851465,-542.5,0.00011367,2]
[348099633,1736311851475,-500.0,0.00011367,2]
[348099634,1736311851484,-500.0,0.00011367,2]
[348099635,1736311851493,-500.0,0.00011367,2]
[348099636,1736311851502,-505.54625161,0.00011367,2]
[348099637,1736311851511,-500.0,0.00011367,2]
[348099638,1736311851520,-500.0,0.00011367,2]
[348099639,1736311851530,-539.98,0.00011367,2]
[348099640,1736311851544,-886.51,0.00011367,2]
[348099641,1736311851554,-1912.45,0.00011367,2]
[348099642,1736311851563,-500.0,0.00011367,2]
[348099643,1736311851573,-500.0,0.00011367,2]
[348099644,1736311851584,-500.0,0.00011367,2]
[348099645,1736311851593,-1154.38,0.00011367,2]
[348099646,1736311851603,-500.0,0.00011367,2]
[348099647,1736311851613,-500.0,0.00011367,2]
[348099648,1736311851623,-500.0,0.00011367,2]
[348099649,1736311851632,-500.0,0.00011367,2]
[348099650,1736311851642,-563.55,0.00011367,2]
[348099651,1736311851651,-3438.08,0.00011367,2]
[348099652,1736311851661,-500.0,0.00011367,2]
[348099653,1736311851671,-500.0,0.00011367,2]
[348099654,1736311851680,-1058.89,0.00011367,2]
[348099655,1736311851689,-182400.33345415,0.00011367,2]
[348099656,1736311851700,-2166.38,0.00011369,2]
[348099657,1736311851711,-500.0,0.00011369,2]
[348099658,1736311851720,-500.0,0.00011369,2]
[348099659,1736311851731,-500.0,0.00011369,2]
[348099660,1736311851741,-500.0,0.00011369,2]
[348099661,1736311851750,-573.8,0.00011369,2]
[348099662,1736311851760,-500.0,0.00011369,2]
[348099663,1736311851770,-500.0,0.00011369,2]
[348099664,1736311851779,-500.0,0.00011369,2]
[348099665,1736311851792,-534.99,0.00011369,2]
[348099666,1736311851802,-500.0,0.00011369,2]
[348099667,1736311851812,-500.0,0.00011369,2]
[348099668,1736311851822,-500.0,0.00011369,2]
[348099669,1736311851832,-500.0,0.00011369,2]
[348099670,1736311851844,-500.0,0.00011369,2]
[348099671,1736311851855,-500.0,0.00011369,2]
[348099672,1736311851867,-1448.21,0.00011369,2]
[348099673,1736311851877,-500.0,0.00011369,2]
[348099674,1736311851887,-500.0,0.00011369,2]
[348099675,1736311851897,-500.0,0.00011369,2]
[348099676,1736311851907,-500.0,0.00011369,2]
[348099677,1736311851919,-909.52,0.00011369,2]
[348099678,1736311851929,-500.0,0.00011369,2]
[348099679,1736311851938,-500.0,0.00011369,2]
[348099680,1736311851948,-500.0,0.00011369,2]
[348099681,1736311851959,-601.86,0.00011369,2]
[348099682,1736311851970,-500.0,0.00011369,2]
[348099683,1736311851980,-330.31,0.00011369,2]
[348099684,1736311851990,-500.0,0.00011369,2]
[348099685,1736311851999,-500.0,0.00011369,2]
[348099686,1736311852009,-500.0,0.00011369,2]
[348099687,1736311852019,-500.0,0.00011369,2]
[348099688,1736311852032,-500.0,0.00011369,2]
[348099689,1736311852051,-448.71726728,0.00011369,2]
[348099690,1736311852060,-500.0,0.00011369,2]
[348099691,1736311852069,-500.0,0.00011369,2]
[348099692,1736311852078,-500.0,0.00011369,2]
[348099693,1736311852087,-500.0,0.00011369,2]
[348099694,1736311852098,-500.0,0.00011369,2]
[348099695,1736311852107,-500.0,0.00011369,2]
[348099696,1736311852117,-500.0,0.00011369,2]
[348099697,1736311852128,-211.06822809,0.00011369,2]
[348099698,1736311852138,-1533.36,0.00011369,2]
[348099699,1736311852148,-578.74802746,0.00011369,2]
[348099700,1736311852159,-500.0,0.00011369,2]
[348099701,1736311852169,-500.0,0.00011369,2]
[348099702,1736311852179,-500.0,0.00011369,2]
[348099703,1736311852189,-500.0,0.00011369,2]
[348099704,1736311852199,-500.0,0.00011369,2]
[348099705,1736311852209,-500.0,0.00011369,2]
[348099706,1736311852220,-700.47,0.00011369,2]
[348099707,1736311852230,-500.0,0.00011369,2]
[348099708,1736311852240,-500.0,0.00011369,2]
[348099709,1736311852250,-500.0,0.00011369,2]
[348099710,1736311852260,-500.0,0.00011369,2]
[348099711,1736311852271,-905.44,0.00011369,2]
[348099712,1736311852281,-500.0,0.00011369,2]
[348099713,1736311852293,-500.0,0.00011369,2]
[348099714,1736311852304,-500.0,0.00011369,2]
[348099715,1736311852314,-500.0,0.00011369,2]
[348099716,1736311852324,-500.0,0.00011369,2]
[348099717,1736311852334,-500.0,0.00011369,2]
[348099718,1736311852344,-500.0,0.00011369,2]
[348099719,1736311852354,-500.0,0.00011369,2]
[348099720,1736311852364,-500.0,0.00011369,2]
[348099721,1736311852375,-500.0,0.00011369,2]
[348099722,1736311852386,-500.0,0.00011369,2]
[348099723,1736311852396,-869.86,0.00011369,2]
[348099724,1736311852407,-500.0,0.00011369,2]
[348099725,1736311852417,-782.99,0.00011369,2]
[348099726,1736311852427,-541.80669716,0.00011369,2]
[348099727,1736311852438,-500.0,0.00011369,2]
[348099728,1736311852449,-1539.23,0.00011369,2]
[348099729,1736311852459,-500.0,0.00011369,2]
[348099730,1736311852469,-500.0,0.00011369,2]
[348099731,1736311852479,-530.46,0.00011369,2]
[348099732,1736311852489,-500.0,0.00011369,2]
[348099733,1736311852500,-500.0,0.00011369,2]
[348099734,1736311852510,-854.93,0.00011369,2]
[348099735,1736311852520,-516.74452115,0.00011369,2]
[348099736,1736311852530,-500.0,0.00011369,2]
[348099737,1736311852541,-647.3,0.00011369,2]
[348099738,1736311852551,-765.46,0.00011369,2]
[348099739,1736311852561,-500.0,0.00011369,2]
[348099740,1736311852571,-500.0,0.00011369,2]
[348099741,1736311852581,-1061.19,0.00011369,2]
[348099742,1736311852591,-500.0,0.00011369,2]
[348099743,1736311852601,-579.76,0.00011369,2]
[348099744,1736311852610,-533.61,0.00011369,2]
[348099745,1736311852620,-500.0,0.00011369,2]
[348099746,1736311852630,-500.0,0.00011369,2]
[348099747,1736311852641,-512.53,0.00011369,2]
[348099748,1736311852651,-473.861407,0.00011369,2]
[348099749,1736311852660,-922.85,0.00011369,2]
[348099750,1736311852670,-500.0,0.00011369,2]
[348099751,1736311852680,-500.0,0.00011369,2]
[348099752,1736311852690,-500.0,0.00011369,2]
[348099753,1736311852701,-500.0,0.00011369,2]
[348099754,1736311852711,-500.0,0.00011369,2]
[348099755,1736311852721,-640.74,0.00011369,2]
[348099756,1736311852731,-500.0,0.00011369,2]
[348099757,1736311852741,-2128.15,0.00011369,2]
[348099758,1736311852751,-500.0,0.00011369,2]
[348099759,1736311852762,-505.89,0.00011369,2]
[348099760,1736311852772,-450.9594,0.00011369,2]
[348099761,1736311852783,-1650.59,0.00011369,2]
[348099762,1736311852795,-885.37,0.00011369,2]
[348099763,1736311852806,-988.02,0.00011369,2]
[348099764,1736311852816,-500.0,0.00011369,2]
[348099765,1736311852826,-1729.79,0.00011369,2]
[348099766,1736311852838,-500.0,0.00011369,2]
[348099767,1736311852849,-956.52,0.00011369,2]
[348099768,1736311852860,-500.0,0.00011369,2]
[348099769,1736311852871,-500.0,0.00011369,2]
[348099770,1736311852882,-500.0,0.00011369,2]
[348099771,1736311852893,-500.0,0.00011369,2]
[348099772,1736311852903,-335.04650648,0.00011369,2]
[348099773,1736311852913,-1547.36,0.00011369,2]
[348099774,1736311852923,-534.4121532,0.00011369,2]
[348099775,1736311852933,-504.32,0.00011369,2]
[348099776,1736311852943,-500.0,0.00011369,2]
[348099777,1736311852952,-639.6,0.00011369,2]
[348099778,1736311852962,-500.0,0.00011369,2]
[348099779,1736311852973,-2470.47,0.00011369,2]
[348099780,1736311852982,-500.0,0.00011369,2]
[348099781,1736311852992,-960.15767696,0.00011383,2]
[348099782,1736311853002,-150.0,0.00011388,2]
[348099783,1736311853012,-150.0,0.00011388,2]
[348099784,1736311853022,-150.0,0.00011407,2]
[348099785,1736311853032,-1096.0,0.00011433,2]
[348099786,1736311853043,-270.48734507,0.00011433,2]
[348099787,1736311853053,-960.15767696,0.00011452,2]
[348099788,1736311853063,-182.91,0.00011479,2]
[348099789,1736311853073,-300.0,0.00011479,2]
[348099790,1736311853084,-182.91,0.00011479,2]
[348099791,1736311853094,-150.0,0.00011479,2]
[348099792,1736311853104,-152.33,0.00011479,2]
[348099793,1736311853114,-182.91,0.00011479,2]
[348099794,1736311853125,-150.0,0.00011479,2]
[348099795,1736311853136,-150.0,0.00011479,2]
[348099796,1736311853147,-182.79,0.00011479,2]
[348099797,1736311853158,-150.0,0.00011479,2]
[348099798,1736311853168,-150.0,0.00011479,2]
[348099799,1736311853179,-150.0,0.00011479,2]
[348099800,1736311853189,-150.0,0.00011479,2]
[348099801,1736311853199,-150.0,0.00011479,2]
[348099802,1736311853210,-150.0,0.00011479,2]
[348099803,1736311853220,-150.0,0.00011498,2]
[348099804,1736311853231,-429.70395169,0.00011502,2]
[348099805,1736311853241,-298.06011956,0.00011506,2]
[348099806,1736311853252,-2751.0,0.00011507,2]
[348099807,1736311853263,-150.0,0.00011507,2]
[348099808,1736311853273,-960.15767696,0.00011521,2]
[348099809,1736311853283,-1520.25537958,0.00011535,2]
[348099810,1736311853295,-14508.10428721,0.00011567,2]
[348099811,1736311853304,-150.0,0.00011589,2]
[348099812,1736311853314,-960.15767696,0.0001159,2]
[348099813,1736311853324,-150.0,0.00011626,2]
[348099814,1736311853334,-150.0,0.00011626,2]
[348099815,1736311853344,-500.0,0.0001164,2]
[348099816,1736311853355,-500.0,0.0001164,2]
[348099817,1736311853365,-1305.41,0.0001164,2]
[348099818,1736311853374,-594.11,0.0001164,2]
[348099819,1736311853385,-942.87,0.0001164,2]
[348099820,1736311853395,-500.0,0.0001164,2]
[348099821,1736311853407,-500.0,0.0001164,2]
[348099822,1736311853418,-500.0,0.0001164,2]
[348099823,1736311853429,-1037.93,0.0001164,2]
[348099824,1736311853439,-672.69,0.0001164,2]
[348099825,1736311853450,-542.5,0.00011641,2]
[348099826,1736311853461,-500.0,0.00011641,2]
[348099827,1736311853471,-500.0,0.00011641,2]
[348099828,1736311853482,-500.0,0.00011641,2]
[348099829,1736311853491,-500.0,0.00011641,2]
[348099830,1736311853502,-500.0,0.00011641,2]
[348099831,1736311853512,-539.98,0.00011641,2]
[348099832,1736311853521,-886.51,0.00011641,2]
[348099833,1736311853532,-1912.45,0.00011641,2]
[348099834,1736311853543,-500.0,0.00011641,2]
[348099835,1736311853554,-500.0,0.00011641,2]
[348099836,1736311853564,-500.0,0.00011641,2]
[348099837,1736311853574,-1154.38,0.00011641,2]
[348099838,1736311853584,-500.0,0.00011641,2]
[348099839,1736311853595,-500.0,0.00011641,2]
[348099840,1736311853605,-500.0,0.00011641,2]
[348099841,1736311853615,-500.0,0.00011641,2]
[348099842,1736311853625,-563.55,0.00011641,2]
[348099843,1736311853635,-3438.08,0.00011641,2]
[348099844,1736311853646,-500.0,0.00011641,2]
[348099845,1736311853656,-500.0,0.00011641,2]
[348099846,1736311853666,-1058.89,0.00011641,2]
[348099847,1736311853676,-934.82618139,0.00011641,2]
[348099848,1736311853687,-2166.38,0.00011643,2]
[348099849,1736311853697,-500.0,0.00011643,2]
[348099850,1736311853707,-154.16579467,0.00011643,2]
[348099851,1736311853717,-500.0,0.00011643,2]
[348099852,1736311853727,-500.0,0.00011643,2]
[348099853,1736311853737,-573.8,0.00011643,2]
[348099854,1736311853747,-500.0,0.00011643,2]
[348099855,1736311853757,-500.0,0.00011643,2]
[348099856,1736311853767,-500.0,0.00011643,2]
[348099857,1736311853777,-534.99,0.00011643,2]
[348099858,1736311853790,-500.0,0.00011643,2]
[348099859,1736311853805,-500.0,0.00011643,2]
[348099860,1736311853815,-500.0,0.00011643,2]
[348099861,1736311853825,-500.0,0.00011643,2]
[348099862,1736311853835,-500.0,0.00011643,2]
[348099863,1736311853845,-1448.21,0.00011643,2]
[348099864,1736311853855,-500.0,0.00011643,2]
[348099865,1736311854034,-500.0,0.00011643,2]
[348099866,1736311854044,-500.0,0.00011643,2]
[348099867,1736311854054,-500.0,0.00011643,2]
[348099868,1736311854064,-500.0,0.00011643,2]
[348099869,1736311854074,-909.52,0.00011643,2]
[348099870,1736311854084,-500.0,0.00011643,2]
[348099871,1736311854095,-530.3343001,0.00011643,2]
[348099872,1736311854105,-500.0,0.00011643,2]
[348099873,1736311854114,-500.0,0.00011643,2]
[348099874,1736311854124,-500.0,0.00011643,2]
[348099875,1736311854134,-500.0,0.00011643,2]
[348099876,1736311854144,-500.0,0.00011643,2]
[348099877,1736311854154,-500.0,0.00011643,2]
[348099878,1736311854164,-500.0,0.00011643,2]
[348099879,1736311854175,-500.0,0.00011643,2]
[348099880,1736311854184,-500.0,0.00011643,2]
[348099881,1736311854194,-500.0,0.00011643,2]
[348099882,1736311854205,-500.0,0.00011643,2]
[348099883,1736311854215,-500.0,0.00011643,2]
[348099884,1736311854224,-500.0,0.00011643,2]
[348099885,1736311854234,-1533.36,0.00011643,2]
[348099886,1736311854244,-500.0,0.00011643,2]
[348099887,1736311854254,-500.0,0.00011643,2]
[348099888,1736311854265,-500.0,0.00011643,2]
[348099889,1736311854278,-500.0,0.00011643,2]
[348099890,1736311854289,-500.0,0.00011643,2]
[348099891,1736311854300,-700.47,0.00011643,2]
[348099892,1736311854320,-500.0,0.00011643,2]
[348099893,1736311854330,-500.0,0.00011643,2]
[348099894,1736311854340,-500.0,0.00011643,2]
[348099895,1736311854350,-157.76209849,0.00011643,2]
[348099896,1736311854360,-905.44,0.00011643,2]
[348099897,1736311854369,-500.0,0.00011643,2]
[348099898,1736311854379,-500.0,0.00011643,2]
[348099899,1736311854390,-500.0,0.00011643,2]
[348099900,1736311854400,-500.0,0.00011643,2]
[348099901,1736311854410,-500.0,0.00011643,2]
[348099902,1736311854419,-500.0,0.00011643,2]
[348099903,1736311854429,-626.46,0.00011643,2]
[348099904,1736311854439,-500.0,0.00011643,2]
[348099905,1736311854449,-500.0,0.00011643,2]
[348099906,1736311854459,-253.345386,0.00011643,2]
[348099907,1736311854469,-500.0,0.00011643,2]
[348099908,1736311854479,-869.86,0.00011643,2]
[348099909,1736311854489,-500.0,0.00011643,2]
[348099910,1736311854499,-782.99,0.00011643,2]
[348099911,1736311854509,-500.0,0.00011643,2]
[348099912,1736311854518,-1539.23,0.00011643,2]
[348099913,1736311854528,-500.0,0.00011643,2]
[348099914,1736311854540,-500.0,0.00011643,2]
[348099915,1736311854551,-530.46,0.00011643,2]
[348099916,1736311854560,-500.0,0.00011643,2]
[348099917,1736311854570,-500.0,0.00011643,2]
[348099918,1736311854580,-854.93,0.00011643,2]
[348099919,1736311854589,-500.0,0.00011643,2]
[348099920,1736311854599,-647.3,0.00011643,2]
[348099921,1736311854608,-765.46,0.00011643,2]
[348099922,1736311854618,-500.0,0.00011643,2]
[348099923,1736311854628,-500.0,0.00011643,2]
[348099924,1736311854637,-1061.19,0.00011643,2]
[348099925,1736311854647,-500.0,0.00011643,2]
[348099926,1736311854656,-579.76,0.00011643,2]
[348099927,1736311854666,-533.61,0.00011643,2]
[348099928,1736311854675,-500.0,0.00011643,2]
[348099929,1736311854685,-500.0,0.00011643,2]
[348099930,1736311854694,-512.53,0.00011643,2]
[348099931,1736311854704,-473.861407,0.00011643,2]
[348099932,1736311854713,-922.85,0.00011643,2]
[348099933,1736311854722,-500.0,0.00011643,2]
[348099934,1736311854732,-500.0,0.00011643,2]
[348099935,1736311854744,-500.0,0.00011643,2]
[348099936,1736311854754,-500.0,0.00011643,2]
[348099937,1736311854764,-500.0,0.00011643,2]
[348099938,1736311854775,-500.0,0.00011643,2]
[348099939,1736311854784,-2128.15,0.00011643,2]
[348099940,1736311854797,-500.0,0.00011643,2]
[348099941,1736311854807,-505.89,0.00011643,2]
[348099942,1736311854817,-450.9594,0.00011643,2]
[348099943,1736311854827,-1650.59,0.00011643,2]
[348099944,1736311854837,-885.37,0.00011643,2]
[348099945,1736311854847,-988.02,0.00011643,2]
[348099946,1736311854857,-500.0,0.00011643,2]
[348099947,1736311854868,-1729.79,0.00011643,2]
[348099948,1736311854879,-500.0,0.00011643,2]
[348099949,1736311854888,-956.52,0.00011643,2]
[348099950,1736311854898,-500.0,0.00011643,2]
[348099951,1736311854908,-500.0,0.00011643,2]
[348099952,1736311854918,-500.0,0.00011643,2]
[348099953,1736311854928,-500.0,0.00011643,2]